bitfinex/quotes_SOLUSD_20260310
["timestamp","ask_amount","ask_price","bid_price","bid_amount"]
[1773137153417,2.97727305,87.54,87.512,2.80541912]
[1773137153824,2.97727305,87.538,87.512,2.80541912]
[1773137155727,14.40013826,87.544,87.514,2.80541912]
[1773137155909,2.97727305,87.543,87.514,2.80541912]
[1773137157929,2.97727305,87.541,87.514,2.80541912]
[1773137160030,11.42334932,87.54,87.514,2.80541912]
[1773137160226,2.97727305,87.539,87.514,2.80541912]
[1773137160537,45.77301315,87.58,87.51,4.01263408]
[1773137160538,14.43137844,87.605,87.54,14.40062237]
[1773137160833,14.43137844,87.605,87.519,9.44959196]
[1773137160834,11.6781242,87.627,87.6,4.01263408]
[1773137161020,45.61267271,87.695,87.62,4.01263408]
[1773137161021,4.01263408,87.68,87.62,4.01263408]
[1773137161218,4.01263408,87.68,87.64,4.01263408]
[1773137161412,39.91742794,87.681,87.65,4.01263408]
[1773137161613,39.91742794,87.681,87.553,9.44959196]
[1773137161614,45.593963,87.731,87.616,13.65056267]
[1773137161832,4.01263408,87.73,87.67,4.01263408]
[1773137162034,4.01263408,87.7,87.617,45.65316423]
[1773137162210,28.49285266,87.742,87.67,4.01263408]
[1773137162410,4.01263408,87.72,87.67,4.01263408]
[1773137162715,3.10573032,87.699,87.67,4.01263408]
[1773137162932,3.10573032,87.699,87.64,4.01263408]
[1773137163247,3.10573032,87.709,87.68,4.01263408]
[1773137163536,3.10573032,87.709,87.66,4.01263408]
[1773137163707,3.10573032,87.709,87.639,4.82477569]
[1773137163708,3.10573032,87.709,87.67,10.70801947]
[1773137163908,250.72939457,87.744,87.639,4.82477569]
[1773137163909,3.10573032,87.737,87.69,10.70801947]
[1773137164126,3.10573032,87.748,87.72,10.70801947]
[1773137164330,22.31363809,87.745,87.71,10.70801947]
[1773137164629,22.31363809,87.745,87.72,10.70801947]
[1773137164833,3.10573032,87.739,87.661,39.92653516]
[1773137165011,3.10573032,87.729,87.69,10.70801947]
[1773137165640,3.10573032,87.729,87.69,10.24419759]
[1773137165937,3.10573032,87.699,87.64,10.70801947]
[1773137166232,3.10573032,87.699,87.601,11.4153948]
[1773137166233,10.70801947,87.66,87.62,10.70801947]
[1773137166432,3.10573032,87.659,87.62,10.70801947]
[1773137166630,3.10573032,87.659,87.63,10.70801947]
[1773137166833,3.10573032,87.669,87.63,10.70801947]
[1773137168161,11.40667062,87.668,87.631,11.4114868]
[1773137168513,11.40667062,87.668,87.63,10.70801947]
[1773137168720,11.40667062,87.668,87.625,11.41220667]
[1773137168721,10.70801947,87.66,87.62,10.70801947]
[1773137170719,11.40697847,87.666,87.63,10.70801947]
[1773137170919,3.10573032,87.667,87.63,10.70801947]
[1773137171849,11.40693085,87.666,87.63,10.70801947]
[1773137172022,10.70801947,87.66,87.63,10.70801947]
[1773137172222,10.70801947,87.65,87.621,11.41278917]
[1773137172527,10.70801947,87.65,87.56,45.68284643]
[1773137172528,3.10573032,87.649,87.62,10.70801947]
[1773137172840,11.40815854,87.657,87.621,11.41278917]
[1773137174140,3.10573032,87.668,87.63,10.70801947]
[1773137174350,10.70801947,87.67,87.63,10.70801947]
[1773137174646,11.40613113,87.673,87.641,11.41018473]
[1773137175226,10.70801947,87.67,87.641,11.41018473]
[1773137175618,10.70801947,87.67,87.631,11.4114868]
[1773137175938,10.70801947,87.66,87.631,11.4114868]
[1773137176920,10.70801947,87.66,87.621,39.94476209]
[1773137177343,11.40784175,87.659,87.621,39.94476209]
[1773137178419,10.70801947,87.66,87.621,39.94476209]
[1773137179051,22.11442987,87.67,87.621,39.94476209]
[1773137179543,11.4064104,87.67,87.63,10.70801947]
[1773137179729,25.22016019,87.67,87.63,10.70801947]
[1773137179928,25.22016019,87.67,87.621,39.94476209]
[1773137180130,3.10573032,87.669,87.621,39.94476209]
[1773137180335,3.10573032,87.669,87.63,10.70801947]
[1773137181543,11.40667062,87.668,87.631,11.4114868]
[1773137182350,3.10573032,87.667,87.631,11.4114868]
[1773137182543,3.10573032,87.639,87.571,68.51583285]
[1773137182745,39.92334717,87.668,87.61,10.70801947]
[1773137182746,3.10573032,87.649,87.61,10.70801947]
[1773137182943,10.70801947,87.65,87.591,4.82477569]
[1773137183169,10.70801947,87.65,87.61,10.70801947]
[1773137183639,11.40914328,87.649,87.61,4.0026001]
[1773137184042,3.10573032,87.648,87.596,4.82477569]
[1773137184252,3.10573032,87.648,87.61,4.0026001]
[1773137184546,3.10573032,87.629,87.592,39.95798702]
[1773137185744,3.10573032,87.627,87.592,39.95798702]
[1773137185950,4.0026001,87.61,87.58,4.0026001]
[1773137186149,4.0026001,87.61,87.571,2.48997892]
[1773137186733,6.93752218,87.61,87.571,2.48997892]
[1773137186932,4.0026001,87.61,87.571,2.48997892]
[1773137187136,2.93492208,87.609,87.571,2.48997892]
[1773137187857,11.41422212,87.61,87.581,2.49056665]
[1773137188063,22.14455613,87.61,87.581,2.49056665]
[1773137188431,11.41422212,87.61,87.581,2.49056665]
[1773137188653,2.93492208,87.609,87.58,10.73033401]
[1773137188861,2.93492208,87.609,87.572,42.45796822]
[1773137189240,2.93492208,87.609,87.58,10.73033401]
[1773137189858,11.41448269,87.608,87.58,22.14839068]
[1773137190368,2.93492208,87.607,87.575,11.41867051]
[1773137191054,2.93492208,87.607,87.58,10.73033401]
[1773137192538,2.93492208,87.605,87.573,2.49085546]
[1773137193055,2.93492208,87.605,87.57,10.73033401]
[1773137193259,2.93492208,87.605,87.571,11.41930547]
[1773137193444,2.93492208,87.605,87.572,2.49196142]
[1773137194260,11.4140574,87.612,87.58,10.73033401]
[1773137194564,14.47101429,87.612,87.581,11.41800162]
[1773137195259,3.05695689,87.611,87.581,11.41800162]
[1773137195455,11.41422212,87.61,87.581,11.41800162]
[1773137195761,3.05695689,87.609,87.581,11.41800162]
[1773137196054,3.05695689,87.609,87.58,10.73033401]
[1773137196055,3.05695689,87.609,87.579,11.41815674]
[1773137197150,3.05695689,87.609,87.575,11.41878279]
[1773137197760,11.41448269,87.608,87.581,2.49281809]
[1773137198739,3.05695689,87.607,87.581,2.49281809]
[1773137199041,3.05695689,87.607,87.572,2.49298357]
[1773137199662,3.05695689,87.605,87.573,11.41904468]
[1773137200254,3.05695689,87.605,87.57,10.73033401]
[1773137200445,3.05695689,87.599,87.569,11.41952915]
[1773137204566,3.05695689,87.597,87.57,62.8]
[1773137207169,2.96564615,87.595,87.563,2.49393727]
[1773137207461,2.96564615,87.595,87.565,11.42005652]
[1773137209046,2.96564615,87.595,87.562,2.49468305]
[1773137209246,2.96564615,87.595,87.561,74.22056053]
[1773137209247,2.96564615,87.593,87.563,11.42034877]
[1773137209462,2.96564615,87.593,87.564,2.4948271]
[1773137211572,14.38221387,87.592,87.565,11.42008793]
[1773137212279,2.96564615,87.591,87.561,74.22060805]
[1773137213359,28.54048476,87.595,87.561,74.22060805]
[1773137213360,2.96564615,87.589,87.561,74.22060805]
[1773137213972,2.96564615,87.589,87.562,62.8]
[1773137214868,2.96564615,87.589,87.553,11.42161341]
[1773137215167,2.96564615,87.589,87.545,28.5566804]
[1773137215168,2.96564615,87.559,87.519,11.42605952]
[1773137215354,2.96564615,87.549,87.513,11.42687372]
[1773137216457,39.97350327,87.558,87.497,11.42896327]
[1773137216458,2.96564615,87.529,87.497,11.42896327]
[1773137217353,2.96564615,87.527,87.497,11.42896327]
[1773137217855,2.96564615,87.527,87.5,4.00692992]
[1773137218071,0.09,106.37,87.526,2.69592155]
[1773137218072,2.96564615,87.633,87.526,2.69592155]
[1773137218372,2.96564615,87.633,87.501,1.14284408]
[1773137218373,2.96564615,87.619,87.58,4.00692992]
[1773137218561,2.96564615,87.609,87.57,4.00692992]
[1773137218761,2.96564615,87.609,87.58,4.00692992]
[1773137219077,2.96564615,87.609,87.57,4.00692992]
[1773137219277,2.96564615,87.609,87.541,4.82477569]
[1773137219278,2.96564615,87.599,87.541,4.82477569]
[1773137219577,2.96564615,87.599,87.52,9.44959196]
[1773137219578,2.96564615,87.559,87.523,2.69617971]
[1773137219778,2.96564615,87.559,87.53,10.74322411]
[1773137220578,2.96564615,87.559,87.522,28.5641173]
[1773137221976,2.96564615,87.568,87.54,10.74322411]
[1773137223257,2.96564615,87.568,87.531,2.69650411]
[1773137225681,2.96564615,87.568,87.54,10.74322411]
[1773137227079,2.96564615,87.568,87.532,39.98537677]
[1773137227080,2.96564615,87.568,87.533,2.6970204]
[1773137227280,2.96564615,87.568,87.541,2.69712013]
[1773137227780,2.96564615,87.568,87.542,39.9808092]
[1773137228156,2.96564615,87.568,87.543,2.69712013]
[1773137229169,3.0568745,87.579,87.55,10.74322411]
[1773137229376,3.0568745,87.579,87.551,2.69721871]
[1773137229776,3.0568745,87.579,87.552,11.42178362]
[1773137230563,3.0568745,87.579,87.56,10.74322411]
[1773137230858,3.0568745,87.586,87.56,10.74322411]
[1773137231055,3.0568745,87.586,87.553,2.69741249]
[1773137232072,3.0568745,87.586,87.56,10.74322411]
[1773137232387,3.0568745,87.586,87.554,11.42152271]
[1773137235702,3.0568745,87.584,87.554,11.42152271]
[1773137236076,28.54074008,87.595,87.535,62.8]
[1773137236077,3.0568745,87.569,87.535,62.8]
[1773137236267,3.0568745,87.569,87.529,2.69787779]
[1773137236588,3.0568745,87.569,87.531,2.69796767]
[1773137237882,3.0568745,87.569,87.532,11.42439336]
[1773137238184,3.0568745,87.567,87.532,39.98537677]
[1773137238878,3.0568745,87.567,87.533,2.69814435]
[1773137239078,153.98048709,88.852,87.56,10.74322411]
[1773137239079,3.69383402,87.605,87.56,10.74322411]
[1773137239287,10.74322411,87.59,87.55,13.61237255]
[1773137239463,10.74322411,87.58,87.55,13.61237255]
[1773137239667,28.53844572,87.602,87.55,13.61237255]
[1773137239668,10.74322411,87.59,87.55,13.61237255]
[1773137239972,11.41695875,87.589,87.551,11.42191408]
[1773137240578,10.74322411,87.58,87.551,11.42191408]
[1773137241182,3.0568745,87.579,87.551,11.42191408]
[1773137241383,3.0568745,87.569,87.539,11.42347982]
[1773137241584,3.0568745,87.569,87.532,11.42427124]
[1773137241786,3.0568745,87.559,87.532,11.42427124]
[1773137242992,3.0568745,87.539,87.506,2.86914844]
[1773137243222,3.0568745,87.539,87.507,14.29680565]
[1773137243372,3.0568745,87.529,87.501,11.42842919]
[1773137244072,4.00963666,87.52,87.491,2.86914844]
[1773137244277,3.0568745,87.519,87.492,11.42954991]
[1773137244672,3.0568745,87.519,87.49,0.2]
[1773137245167,3.0568745,87.519,87.491,11.42974705]
[1773137245366,3.0568745,87.509,87.49,0.2]
[1773137245575,3.0568745,87.509,87.474,11.43190422]
[1773137245766,3.0568745,87.509,87.47,10.75538437]
[1773137245767,3.0568745,87.499,87.471,2.86914844]
[1773137245970,39.98720408,87.528,87.49,13.62453281]
[1773137245971,3.0568745,87.527,87.49,13.62453281]
[1773137246186,3.0568745,87.517,87.484,11.43055638]
[1773137246492,3.0568745,87.509,87.477,2.86914844]
[1773137246673,3.0568745,87.509,87.481,2.86914844]
[1773137246870,3.0568745,87.509,87.48,10.75538437]
[1773137247077,3.0568745,87.489,87.455,2.86914844]
[1773137247283,3.0568745,87.479,87.456,11.4342948]
[1773137247472,3.0568745,87.479,87.452,11.43481476]
[1773137247666,3.0568745,87.479,87.437,2.86914844]
[1773137247893,3.0568745,87.479,87.441,2.86914844]
[1773137248092,11.43144562,87.478,87.442,11.43615196]
[1773137248282,3.0568745,87.469,87.411,2.86914844]
[1773137248489,3.0568745,87.459,87.412,2.86914844]
[1773137248675,3.0568745,87.459,87.42,10.76187079]
[1773137249096,3.0568745,87.459,87.421,2.86914844]
[1773137249685,3.0568745,87.449,87.422,11.43876827]
[1773137250079,3.0568745,87.449,87.421,2.86914844]
[1773137250277,40.01920921,87.458,87.41,10.96187079]
[1773137250278,3.0568745,87.439,87.412,11.44000276]
[1773137250873,3.0568745,87.457,87.421,2.86914844]
[1773137251073,3.0568745,87.457,87.43,10.76187079]
[1773137251292,3.0568745,87.457,87.429,2.86914844]
[1773137251682,3.0568745,87.455,87.429,2.86914844]
[1773137251883,3.0568745,87.455,87.43,22.19959239]
[1773137252083,3.0568745,87.455,87.431,2.86914844]
[1773137252397,3.0568745,87.455,87.43,11.4377216]
[1773137252398,3.0568745,87.463,87.44,13.63101923]
[1773137252774,3.0568745,87.474,87.441,2.86914844]
[1773137253899,3.06379108,87.472,87.442,11.43615196]
[1773137254100,3.06379108,87.472,87.443,2.9410688]
[1773137254974,3.06379108,87.469,87.431,2.9410688]
[1773137255173,3.06379108,87.469,87.44,13.70293959]
[1773137255495,3.06379108,87.469,87.441,2.9410688]
[1773137255875,11.43150771,87.478,87.443,2.9410688]
[1773137256079,3.06379108,87.48,87.46,10.76187079]
[1773137256501,3.06379108,87.48,87.458,2.9410688]
[1773137256995,11.43131494,87.479,87.458,2.9410688]
[1773137257197,11.43064497,87.485,87.458,2.9410688]
[1773137257696,3.06379108,87.484,87.458,2.9410688]
[1773137257901,11.42996824,87.49,87.461,2.9410688]
[1773137258097,11.42996824,87.49,87.47,10.76187079]
[1773137258395,3.06379108,87.509,87.48,10.76187079]
[1773137258600,3.06379108,87.509,87.471,2.9410688]
[1773137259905,3.06379108,87.507,87.48,10.76187079]
[1773137260196,3.06379108,87.507,87.479,2.9410688]
[1773137261099,3.06379108,87.499,87.471,2.9410688]
[1773137261591,3.06379108,87.499,87.472,2.9410688]
[1773137261909,3.06379108,87.499,87.474,2.9410688]
[1773137262803,3.06379108,87.489,87.453,2.9410688]
[1773137263017,3.06379108,87.489,87.46,10.76187079]
[1773137263808,3.06379108,87.489,87.46,18.16187079]
[1773137264001,3.06379108,87.489,87.461,11.43366757]
[1773137264579,3.06379108,87.489,87.462,2.9410688]
[1773137264880,3.06379108,87.499,87.47,10.76187079]
[1773137265099,3.06379108,87.499,87.469,2.9410688]
[1773137265302,3.06379108,87.499,87.47,10.76187079]
[1773137265499,3.06379108,87.517,87.49,10.76187079]
[1773137265686,3.06379108,87.515,87.49,10.76187079]
[1773137265996,3.06379108,87.515,87.5,10.76187079]
[1773137267093,3.06379108,87.515,87.491,42.94518349]
[1773137267295,3.06379108,87.515,87.491,14.37081585]
[1773137269709,3.06379108,87.515,87.491,11.42974705]
[1773137270807,3.06379108,87.514,87.491,11.42974705]
[1773137271105,2.83199149,87.528,87.492,2.980625]
[1773137272211,2.83199149,87.526,87.493,11.42948578]
[1773137273111,2.83199149,87.526,87.49,18.16187079]
[1773137273607,2.83199149,87.519,87.491,11.42974705]
[1773137274307,2.83199149,87.517,87.491,11.42974705]
[1773137275293,2.83199149,87.515,87.491,11.42974705]
[1773137275720,2.83199149,87.528,87.501,2.980625]
[1773137276212,2.83199149,87.526,87.501,2.980625]
[1773137276409,2.83199149,87.526,87.492,2.980625]
[1773137278327,2.83199149,87.524,87.5,7.4]
[1773137279115,2.83199149,87.524,87.501,11.42844081]
[1773137280505,2.83199149,87.522,87.5,7.4]
[1773137281017,11.42556813,87.523,87.5,7.4]
[1773137281018,2.83199149,87.519,87.5,7.4]
[1773137281199,2.83199149,87.519,87.493,11.42948578]
[1773137281400,2.83199149,87.499,87.46,10.76187079]
[1773137281723,2.83199149,87.499,87.438,57.18337564]
[1773137281724,2.83199149,87.489,87.461,2.980625]
[1773137282095,2.83199149,87.489,87.438,57.18337564]
[1773137282096,2.83199149,87.469,87.439,2.980625]
[1773137282300,2.83199149,87.476,87.441,2.980625]
[1773137282706,11.43183766,87.475,87.443,2.980625]
[1773137283224,2.83199149,87.488,87.461,2.980625]
[1773137283418,2.83199149,87.499,87.471,2.980625]
[1773137285102,2.92126652,87.497,87.461,2.97526479]
[1773137285303,2.92126652,87.497,87.462,2.97526479]
[1773137285911,2.92126652,87.489,87.453,11.4347135]
[1773137286114,2.92126652,87.479,87.453,11.4347135]
[1773137287301,2.92126652,87.479,87.453,14.40997829]
[1773137287919,2.92126652,87.479,87.46,10.76187079]
[1773137288324,2.92126652,87.479,87.46,18.16187079]
[1773137288627,2.92126652,87.479,87.46,7.4]
[1773137289516,2.92126652,87.479,87.461,11.43366757]
[1773137291940,2.92126652,87.479,87.46,7.4]
[1773137292116,2.92126652,87.469,87.445,2.97526479]
[1773137292925,11.43144562,87.478,87.447,14.41072218]
[1773137293121,10.76187079,87.48,87.448,2.97526479]
[1773137293122,14.3529735,87.476,87.448,2.97526479]
[1773137293326,2.92126652,87.475,87.448,2.97526479]
[1773137293830,2.92126652,87.469,87.447,11.43545739]
[1773137295034,2.92126652,87.476,87.442,2.97526479]
[1773137295415,10.76187079,87.47,87.442,2.97526479]
[1773137295619,10.76187079,87.46,87.442,2.97526479]
[1773137295936,2.92126652,87.459,87.428,14.41324804]
[1773137296132,10.76187079,87.45,87.428,14.41324804]
[1773137296438,2.92126652,87.449,87.428,11.43798325]
[1773137298525,10.76187079,87.44,87.415,62.8]
[1773137298837,10.76187079,87.44,87.414,2.97526479]
[1773137299020,2.92126652,87.439,87.414,2.97526479]
[1773137299218,2.92126652,87.439,87.41,0.2]
[1773137299431,13.68313731,87.43,87.41,0.2]
[1773137299636,10.76187079,87.43,87.41,0.2]
[1773137299833,2.92126652,87.429,87.41,0.2]
[1773137300037,10.76187079,87.43,87.411,2.97526479]
[1773137300241,2.92126652,87.447,87.411,2.97526479]
[1773137300841,10.76187079,87.45,87.41,22.40212378]
[1773137300842,2.92126652,87.445,87.413,2.97526479]
[1773137301019,2.92126652,87.439,87.413,2.97526479]
[1773137301221,10.76187079,87.43,87.412,11.44007687]
[1773137301417,2.92126652,87.432,87.412,11.44007687]
[1773137301725,10.76187079,87.43,87.412,11.44007687]
[1773137301932,2.92126652,87.429,87.41,0.2]
[1773137302339,10.76187079,87.42,87.41,0.2]
[1773137302531,10.76187079,87.43,87.41,0.2]
[1773137302730,2.92126652,87.429,87.41,11.64026537]
[1773137303337,2.92126652,87.428,87.41,0.2]
[1773137304047,2.92126652,87.428,87.411,11.44020775]
[1773137304246,2.92126652,87.428,87.41,0.2]
[1773137305347,10.76187079,87.42,87.41,0.2]
[1773137306426,2.92126652,87.419,87.41,0.2]
[1773137306626,2.92126652,87.419,87.4,11.44152516]
[1773137306829,11.43811408,87.427,87.385,14.41887639]
[1773137306830,10.76187079,87.41,87.385,14.41887639]
[1773137307060,2.92126652,87.409,87.385,11.4436116]
[1773137307429,2.92126652,87.407,87.381,11.44413545]
[1773137307648,2.92126652,87.415,87.382,2.97526479]
[1773137307952,13.68313731,87.41,87.382,2.97526479]
[1773137308452,2.92126652,87.41,87.382,2.97526479]
[1773137308634,13.68313731,87.41,87.382,2.97526479]
[1773137308952,2.92126652,87.409,87.382,2.97526479]
[1773137309656,2.92126652,87.407,87.382,2.97526479]
[1773137309834,2.92126652,87.407,87.383,11.44387352]
[1773137310236,2.92126652,87.407,87.382,2.97526479]
[1773137310537,2.92126652,87.407,87.382,14.41920327]
[1773137311354,2.92126652,87.399,87.38,0.2]
[1773137311843,14.36317594,87.398,87.38,0.2]
[1773137312353,2.92126652,87.405,87.382,2.97526479]
[1773137312652,2.92126652,87.405,87.381,11.44413545]
[1773137312833,2.92126652,87.399,87.38,0.2]
[1773137313034,11.44107231,87.405,87.37,0.2]
[1773137313035,2.92126652,87.389,87.37,0.2]
[1773137313651,10.78014102,87.38,87.37,0.2]
[1773137313844,2.97619006,87.378,87.35,0.2]
[1773137314154,10.78014102,87.36,87.35,0.2]
[1773137314356,10.78014102,87.37,87.35,0.2]
[1773137314651,2.97619006,87.376,87.352,2.91814955]
[1773137314849,10.78014102,87.37,87.35,0.2]
[1773137315042,13.75633108,87.37,87.35,0.2]
[1773137315250,11.44439739,87.379,87.35,0.2]
[1773137315251,2.97619006,87.369,87.35,0.2]
[1773137316059,2.97619006,87.367,87.35,0.2]
[1773137316568,10.78014102,87.37,87.35,0.2]
[1773137317659,10.78014102,87.38,87.35,11.64811799]
[1773137317861,14.4194088,87.388,87.351,2.91814955]
[1773137318050,14.4194088,87.388,87.353,2.91814955]
[1773137318051,2.97619006,87.387,87.353,2.91814955]
[1773137318477,11.44188191,87.399,87.371,2.91814955]
[1773137318682,10.78014102,87.39,87.363,2.91814955]
[1773137318971,2.97619006,87.389,87.363,2.91814955]
[1773137320069,14.4194088,87.388,87.363,2.91814955]
[1773137320790,11.44321874,87.388,87.363,2.91814955]
[1773137321088,2.97619006,87.397,87.365,2.91814955]
[1773137321585,2.97619006,87.389,87.365,2.91814955]
[1773137321773,2.97619006,87.389,87.359,11.44692089]
[1773137321974,2.97619006,87.379,87.35,0.2]
[1773137322174,2.97619006,87.377,87.35,0.2]
[1773137322582,2.97619006,87.377,87.351,11.44806584]
[1773137322776,2.97619006,87.377,87.352,2.91814955]
[1773137323087,2.97619006,87.378,87.352,2.91814955]
[1773137323389,2.97619006,87.378,87.35,0.2]
[1773137324281,10.78014102,87.38,87.35,0.2]
[1773137324282,2.97619006,87.376,87.35,0.2]
[1773137325473,2.97619006,87.376,87.352,2.91814955]
[1773137325877,10.78014102,87.38,87.352,2.91814955]
[1773137326300,11.44439739,87.379,87.354,2.91814955]
[1773137326990,14.42058745,87.379,87.354,2.91814955]
[1773137327171,2.97619006,87.378,87.354,2.91814955]
[1773137327572,10.78014102,87.37,87.354,2.91814955]
[1773137327773,2.97619006,87.378,87.35,0.2]
[1773137329501,3.04974267,87.376,87.35,0.2]
[1773137329900,11.44465934,87.377,87.351,3.12917622]
[1773137331593,3.04974267,87.376,87.351,3.12917622]
[1773137332193,3.04974267,87.376,87.35,0.2]
[1773137332999,13.82988369,87.37,87.35,0.2]
[1773137333199,3.04974267,87.369,87.35,0.2]
[1773137333600,14.49558096,87.368,87.35,0.2]
[1773137333988,3.04974267,87.367,87.35,0.2]
[1773137335712,14.49584298,87.366,87.35,0.2]
[1773137336404,3.04974267,87.365,87.35,0.2]
[1773137338412,3.04974267,87.363,87.35,0.2]
[1773137338713,4.02789828,87.36,87.35,0.2]
[1773137339108,3.04974267,87.363,87.35,0.2]
[1773137339697,11.44636234,87.364,87.33,4.22789828]
[1773137339698,3.04974267,87.359,87.33,0.2]
[1773137340101,3.04974267,87.359,87.332,3.12917622]
[1773137340399,11.44636234,87.364,87.332,3.12917622]
[1773137340400,4.02789828,87.35,87.332,3.12917622]
[1773137340794,3.04974267,87.357,87.332,3.12917622]
[1773137340995,11.4466434,87.362,87.332,3.12917622]
[1773137341615,11.44583829,87.368,87.341,3.12917622]
[1773137342705,11.44583829,87.368,87.343,3.12917622]
[1773137343619,3.0834333,87.379,87.343,3.12917622]
[1773137344903,4.58321397,87.474,87.34,4.02789828]
[1773137344904,4.02789828,87.37,87.345,3.06554087]
[1773137345425,3.08465755,87.369,87.345,3.06554087]
[1773137345608,3.08465755,87.369,87.336,3.06554087]
[1773137345810,7.11255583,87.36,87.336,3.06554087]
[1773137346920,14.53226219,87.359,87.336,3.06554087]
[1773137347224,3.08524472,87.358,87.336,3.06554087]
[1773137347522,4.02789828,87.36,87.338,3.06554087]
[1773137347728,11.44654502,87.363,87.338,3.06554087]
[1773137348107,3.08582514,87.359,87.331,3.06554087]
[1773137348418,14.53265956,87.365,87.332,3.06554087]
[1773137349427,11.44549257,87.371,87.341,3.06554087]
[1773137350427,3.08752672,87.393,87.351,3.06554087]
[1773137350604,4.02789828,87.39,87.351,3.06554087]
[1773137350933,28.60589591,87.395,87.351,3.06554087]
[1773137350934,3.08752672,87.391,87.351,3.06554087]
[1773137351132,3.08752672,87.389,87.351,3.06554087]
[1773137351431,14.53074546,87.388,87.353,3.06554087]
[1773137351600,3.08808094,87.387,87.353,3.06554087]
[1773137353106,3.08862879,87.379,87.353,3.06554087]
[1773137353306,11.44452837,87.378,87.353,3.06554087]
[1773137353514,11.44452837,87.378,87.355,3.06554087]
[1773137353720,14.53369871,87.378,87.355,3.06554087]
[1773137355120,11.44479033,87.376,87.355,3.06554087]
[1773137355427,3.08970568,87.375,87.355,3.06554087]
[1773137356029,3.08970568,87.375,87.35,18.84810194]
[1773137356237,3.08970568,87.375,87.35,14.51364281]
[1773137356420,3.08970568,87.375,87.351,3.06554087]
[1773137356914,4.02789828,87.38,87.351,3.06554087]
[1773137356915,11.44433235,87.38,87.351,3.06554087]
[1773137357111,3.09075797,87.388,87.353,3.06554087]
[1773137358126,11.44334969,87.387,87.354,11.44767268]
[1773137358430,3.09127507,87.386,87.355,3.06554087]
[1773137359008,11.44334969,87.387,87.361,3.06554087]
[1773137360124,11.4428858,87.391,87.361,3.06554087]
[1773137360335,11.4428858,87.391,87.363,3.06554087]
[1773137360632,3.09279101,87.379,87.356,11.44740373]
[1773137361122,4.02789828,87.37,87.352,3.06554087]
[1773137361733,3.09279101,87.372,87.352,3.06554087]
[1773137363442,11.44519794,87.373,87.352,3.06554087]
[1773137364446,3.09473223,87.376,87.352,3.06554087]
[1773137366360,3.09520368,87.374,87.34,4.02789828]
[1773137366655,11.44492131,87.375,87.331,91.42667535]
[1773137366656,3.09566972,87.359,87.331,3.06554087]
[1773137367523,3.09566972,87.359,87.331,11.45068761]
[1773137367729,3.0961304,87.365,87.332,3.06554087]
[1773137368649,4.02789828,87.36,87.334,3.06554087]
[1773137369743,11.44636234,87.364,87.334,3.06554087]
[1773137370052,3.0961304,87.365,87.341,3.06554087]
[1773137370249,11.44602454,87.367,87.341,3.06554087]
[1773137370649,3.09703596,87.372,87.343,3.06554087]
[1773137370858,3.09748095,87.382,87.351,3.06554087]
[1773137371437,4.02789828,87.38,87.351,3.06554087]
[1773137371648,3.09792083,87.379,87.351,3.06554087]
[1773137372561,11.44452837,87.378,87.353,3.06554087]
[1773137374143,11.44452837,87.378,87.33,0.2]
[1773137374144,3.04655591,87.369,87.346,2.94389001]
[1773137375347,11.44583829,87.368,87.346,2.94389001]
[1773137375864,3.04655591,87.367,87.346,2.94389001]
[1773137376067,3.04655591,87.367,87.344,11.44893802]
[1773137376863,3.04655591,87.359,87.333,2.94389001]
[1773137377661,4.02692278,87.35,87.333,2.94389001]
[1773137377961,11.44714851,87.358,87.333,2.94389001]
[1773137378544,4.02692278,87.35,87.333,2.94389001]
[1773137378748,3.04655591,87.357,87.333,2.94389001]
[1773137380070,3.04655591,87.355,87.333,2.94389001]
[1773137381284,3.04655591,87.355,87.334,2.94389001]
[1773137381574,11.44741059,87.356,87.334,2.94389001]
[1773137382649,11.44741059,87.356,87.335,14.39405317]
[1773137383865,11.44741059,87.356,87.336,2.94389001]
[1773137384476,14.4939665,87.356,87.336,2.94389001]
[1773137386164,14.4939665,87.356,87.338,2.9428909]
[1773137386666,4.02692278,87.36,87.338,2.9428909]
[1773137386975,2.92554633,87.375,87.34,4.02692278]
[1773137387278,4.02692278,87.37,87.351,2.9428909]
[1773137387676,2.92554633,87.369,87.345,2.9428909]
[1773137387980,2.92554633,87.369,87.33,0.2]
[1773137387981,2.92554633,87.369,87.339,2.9428909]
[1773137389384,4.02692278,87.36,87.34,11.44950767]
[1773137389605,2.92554633,87.371,87.341,2.9428909]
[1773137389887,2.92554633,87.369,87.341,2.9428909]
[1773137390793,2.92554633,87.367,87.343,2.9428909]
[1773137393289,2.92554633,87.367,87.344,11.44898333]
[1773137393788,2.92554633,87.367,87.344,14.39187423]
[1773137394575,11.44610031,87.366,87.344,14.39187423]
[1773137394882,2.92554633,87.365,87.344,14.39187423]
[1773137395083,2.92554633,87.365,87.338,2.9428909]
[1773137396298,2.92554633,87.363,87.34,2.9428909]
[1773137396971,2.92554633,87.359,87.331,11.45058577]
[1773137397382,2.92554633,87.359,87.332,2.9428909]
[1773137398372,14.3725638,87.359,87.334,2.9428909]
[1773137399311,14.3725638,87.359,87.335,11.45016316]